bitfinex/quotes_ETHUSD_20250425
["timestamp","ask_amount","ask_price","bid_price","bid_amount"]
[1745590515886,5.58647407,1790.1,1789.9,6.847]
[1745590516072,0.8288,1790.3,1789.9,7.5317]
[1745590516275,5.58659217,1790.0,1789.9,6.847]
[1745590516863,6.41539217,1790.0,1789.9,6.52599772]
[1745590517081,5.58909009,1789.2,1789.1,6.847]
[1745590517266,5.58909009,1789.2,1788.9,6.08]
[1745590517267,6.41771726,1789.3,1788.7,6.847]
[1745590517585,0.8288,1789.3,1788.7,6.847]
[1745590517795,6.417707,1789.3,1788.8,0.6847]
[1745590517967,5.58971171,1789.1,1788.7,6.847]
[1745590518168,5.58994655,1789.0,1788.8,6.847]
[1745590518461,5.59002739,1788.9,1788.8,6.847]
[1745590518662,0.7842,1788.9,1788.8,6.847]
[1745590519088,6.37422739,1788.9,1788.8,6.847]
[1745590519712,5.59138709,1788.5,1788.1,0.05]
[1745590519995,6.37423864,1788.9,1788.3,6.848]
[1745590520153,5.59159024,1788.4,1788.3,6.848]
[1745590520357,5.59033989,1788.8,1788.3,6.848]
[1745590520652,5.59136765,1788.5,1788.3,6.848]
[1745590521269,5.59082488,1788.7,1788.3,6.848]
[1745590521469,5.59116982,1788.6,1788.3,6.848]
[1745590521814,5.59159024,1788.4,1788.3,6.848]
[1745590522003,6.37439772,1788.9,1788.3,6.848]
[1745590522204,6.41339024,1788.4,1788.3,6.848]
[1745590522366,0.8218,1788.4,1788.1,0.05]
[1745590522567,0.8218,1788.4,1788.1,6.899]
[1745590523170,5.59211161,1788.3,1788.1,6.899]
[1745590523369,5.59212302,1788.3,1788.1,6.899]
[1745590523565,0.8218,1788.4,1788.1,6.899]
[1745590523770,5.59069983,1788.7,1788.1,7.5889]
[1745590523965,5.59177022,1788.4,1788.1,6.899]
[1745590524185,5.59209453,1788.3,1788.1,6.899]
[1745590524402,5.59221563,1788.2,1788.1,0.05]
[1745590527395,12.90611563,1788.2,1788.1,1e-08]
[1745590527593,5.59534467,1787.2,1787.1,0.05]
[1745590528509,5.59565776,1787.1,1786.4,6.85]
[1745590528710,1.3049,1787.2,1786.4,6.85]
[1745590528711,5.59632529,1786.9,1786.4,6.85]
[1745590528876,5.59753708,1786.5,1786.4,6.85]
[1745590529208,5.59691757,1786.7,1786.2,16.771]
[1745590529416,5.59847721,1786.2,1786.1,0.05]
[1745590530040,5.59840193,1786.3,1786.1,0.05]
[1745590530235,5.59847721,1786.2,1786.1,0.05]
[1745590530536,5.59840193,1786.3,1786.1,0.05]
[1745590530825,5.59847721,1786.2,1786.1,0.05]
[1745590531033,0.8127,1786.6,1786.1,6.902]
[1745590531183,0.8127,1786.6,1786.1,0.7402]
[1745590531184,6.41009117,1786.6,1786.1,0.7402]
[1745590531388,6.37182936,1787.1,1786.2,12.45335502]
[1745590531620,5.5959709,1787.0,1786.2,6.855]
[1745590531831,6.37167112,1787.1,1786.2,6.855]
[1745590532037,0.776,1787.1,1786.3,0.6855]
[1745590532192,5.59611727,1787.0,1786.3,6.28361986]
[1745590532392,5.59611727,1787.0,1786.3,0.6855]
[1745590532596,5.59640752,1786.9,1786.3,0.6855]
[1745590532820,5.59672222,1786.8,1786.3,0.6855]
[1745590533005,5.59666499,1786.8,1786.4,6.855]
[1745590533204,5.59617463,1787.0,1786.4,6.855]
[1745590533443,5.59609058,1787.0,1786.4,6.855]
[1745590533649,0.7669,1787.4,1786.5,6.87186599]
[1745590533810,5.5942438,1787.6,1786.8,5.59650682]
[1745590534135,0.8094,1787.8,1786.9,7.41465068]
[1745590534345,6.81527302,1787.8,1786.9,7.41465068]
[1745590534487,0.8094,1787.8,1786.9,6.855]
[1745590534691,5.59405447,1787.7,1786.9,6.855]
[1745590534902,5.59444096,1787.5,1786.9,6.855]
[1745590535130,5.59425777,1787.6,1786.9,6.855]
[1745590535431,0.8094,1787.8,1787.1,0.8303]
[1745590535619,5.59390696,1787.7,1787.1,0.8303]
[1745590535815,5.59352149,1787.8,1787.1,6.42592053]
[1745590536128,5.59327775,1787.9,1787.1,6.42593767]
[1745590536291,5.59378666,1787.7,1787.1,0.8303]
[1745590536696,0.7638,1788.1,1787.1,0.8303]
[1745590536909,5.59328665,1787.9,1787.2,5.59527359]
[1745590537095,0.7638,1788.1,1787.3,0.55952736]
[1745590537334,5.59368529,1787.8,1787.4,6.939]
[1745590537634,0.7638,1788.1,1787.4,6.939]
[1745590537929,5.59284116,1788.0,1787.4,6.939]
[1745590538131,5.59326406,1787.9,1787.4,6.939]
[1745590538311,5.59297146,1788.0,1787.4,6.939]
[1745590538634,5.59252804,1788.2,1787.5,0.6939]
[1745590538797,6.42329024,1788.4,1787.7,5.59366557]
[1745590538798,5.59175858,1788.4,1787.7,5.59366557]
[1745590538997,5.59175858,1788.4,1787.8,6.939]
[1745590539220,5.590965,1788.6,1787.8,6.939]
[1745590539433,1.23319308,1788.7,1787.8,6.939]
[1745590539635,5.5924929,1788.2,1787.8,7.6329]
[1745590539799,11.18498888,1788.2,1787.8,7.6329]
[1745590540004,5.5924929,1788.2,1787.8,7.6329]
[1745590540237,5.59184792,1788.4,1787.8,7.6329]
[1745590540401,5.59232446,1788.2,1787.8,7.6329]
[1745590540602,5.59314545,1788.0,1787.9,6.938]
[1745590542500,5.59471858,1787.4,1787.3,16.783]
[1745590542849,5.59471858,1787.4,1787.3,23.721]
[1745590543335,5.59471858,1787.4,1787.3,6.938]
[1745590543633,5.5967631,1786.8,1786.7,6.938]
[1745590543835,0.7776,1787.2,1786.7,6.938]
[1745590544027,5.59613857,1787.0,1786.7,9.3099]
[1745590544224,5.59613857,1787.0,1786.8,6.938]
[1745590544404,5.5951702,1787.3,1786.8,6.938]
[1745590544611,5.5945589,1787.5,1786.9,0.7672]
[1745590544914,5.5944674,1787.5,1786.9,0.7672]
[1745590545241,6.8028,1787.9,1786.9,0.7672]
[1745590545242,6.39609364,1787.9,1786.9,0.7672]
[1745590545448,5.59475902,1787.4,1786.9,1.53772]
[1745590545752,5.59487363,1787.4,1786.9,1.53772]
[1745590545942,5.59423484,1787.6,1786.9,13.23232279]
[1745590546144,5.59275789,1788.1,1787.3,0.7672]
[1745590546344,5.591771,1788.4,1787.5,6.09846599]
[1745590546505,5.59172184,1788.4,1787.6,18.1590466]
[1745590546842,5.59172184,1788.4,1787.6,23.75300792]
[1745590547040,5.59208298,1788.3,1787.6,18.1590466]
[1745590547206,5.5912776,1788.5,1787.6,18.1590466]
[1745590547413,5.59294507,1788.0,1787.7,6.939]
[1745590547817,5.59346728,1787.8,1787.7,6.939]
[1745590548286,5.59449891,1787.5,1787.3,6.939]
[1745590548416,5.59450212,1787.5,1787.3,6.939]
[1745590549128,5.59315397,1787.9,1787.3,6.939]
[1745590549455,5.59333493,1787.9,1787.3,6.939]
[1745590549665,6.42302552,1788.3,1787.4,0.828]
[1745590549870,5.59365271,1787.8,1787.4,0.828]
[1745590550042,6.42313541,1788.3,1787.4,0.828]
[1745590550243,5.59383444,1787.7,1787.4,0.828]
[1745590550432,5.59367908,1787.8,1787.4,0.828]
[1745590550783,6.8311,1788.3,1787.5,6.939]
[1745590550923,5.59330727,1787.9,1787.5,6.939]
[1745590551127,5.59289352,1788.0,1787.5,6.939]
[1745590551340,5.59306658,1788.0,1787.5,6.939]
[1745590551570,5.59269582,1788.1,1787.5,7.7157]
[1745590551878,11.18490394,1788.2,1787.5,13.3098747]
[1745590552106,5.59241746,1788.2,1787.5,7.7157]
[1745590552247,5.59129233,1788.5,1787.7,5.59352797]
[1745590552248,5.5914682,1788.5,1787.7,5.59352797]
[1745590552447,5.59162087,1788.4,1787.7,23.01418825]
[1745590552647,0.8168,1788.6,1787.8,5.59345107]
[1745590552843,0.8192,1788.9,1787.9,6.41511967]
[1745590553085,5.59033989,1788.8,1788.0,6.939]
[1745590553290,5.59065242,1788.7,1788.0,6.939]
[1745590553448,0.8192,1788.9,1788.0,6.939]
[1745590553644,5.59244194,1788.2,1788.0,6.939]
[1745590553890,5.59252838,1788.1,1788.0,6.939]
[1745590554798,5.59252838,1788.1,1787.7,16.782]
[1745590554799,5.59346683,1787.8,1787.7,16.782]
[1745590555001,5.59377971,1787.7,1787.3,0.8286]
[1745590555155,5.59443206,1787.5,1787.3,7.7676]
[1745590555355,5.59444078,1787.5,1787.3,7.7676]
[1745590555587,5.59287518,1788.0,1787.3,7.7676]
[1745590555890,6.41131507,1787.9,1787.3,6.939]
[1745590556051,5.59421685,1787.6,1787.3,6.939]
[1745590556252,5.59471858,1787.4,1787.3,6.939]
[1745590556582,5.59401669,1787.7,1787.3,6.939]
[1745590556888,5.59454028,1787.5,1787.3,6.939]
[1745590557098,5.59550471,1787.2,1787.0,17.5692]
[1745590557299,5.59565776,1787.1,1787.0,16.782]
[1745590557609,0.7511,1787.3,1786.9,6.938]
[1745590557955,5.59581305,1787.1,1786.9,6.938]
[1745590558357,5.59570017,1787.1,1786.9,6.938]
[1745590558574,5.5959709,1787.0,1786.9,6.938]
[1745590558796,5.59639184,1786.9,1786.4,0.7779]
[1745590559003,0.7555,1786.9,1786.2,0.7779]
[1745590559203,5.59747083,1786.6,1786.2,0.7779]
[1745590559509,5.5961422,1787.0,1786.2,0.7779]
[1745590559807,5.59558307,1787.2,1786.2,0.7779]
[1745590559985,5.59655772,1786.9,1786.2,0.7779]
[1745590560302,5.59670697,1786.8,1786.2,0.7779]
[1745590560604,5.59608285,1787.0,1786.3,5.59798465]
[1745590560759,5.59599283,1787.0,1786.4,3.0]
[1745590561092,5.59538901,1787.2,1786.5,0.751]
[1745590561261,5.59538901,1787.2,1786.6,6.94]
[1745590561459,6.36690291,1787.6,1786.6,8.26884229]
[1745590561660,0.7726,1787.6,1786.7,0.751]
[1745590561970,6.36687286,1787.6,1786.9,5.59626585]
[1745590562173,5.59432645,1787.6,1786.9,0.8229]
[1745590562405,5.59377971,1787.7,1786.9,0.8229]
[1745590562563,5.59455735,1787.5,1786.9,0.8229]
[1745590562759,0.7832,1787.9,1786.9,6.41916887]
[1745590563069,5.59440091,1787.6,1787.0,0.64191689]
[1745590563288,0.7832,1787.9,1787.1,6.94]
[1745590563289,5.59346683,1787.8,1787.1,6.94]
[1745590563526,5.59296002,1788.0,1787.2,0.8229]
[1745590563706,5.59310859,1788.0,1787.2,6.41812266]
[1745590563928,5.59240953,1788.2,1787.5,0.8163]
[1745590564236,5.59206736,1788.3,1787.6,6.94]
[1745590564391,5.59142486,1788.5,1787.9,0.7708]
[1745590564595,5.59144535,1788.5,1787.9,0.7708]
[1745590564955,5.59107746,1788.6,1787.9,6.36382097]
[1745590565238,5.59043082,1788.8,1788.0,6.22911629]
[1745590565438,5.59075727,1788.7,1788.1,6.939]
[1745590565649,5.64012296,1788.9,1788.2,6.39509229]
[1745590565805,0.05,1788.9,1788.2,0.8029]
[1745590566007,5.590965,1788.6,1788.1,6.939]
[1745590566228,5.59221563,1788.2,1788.1,6.939]
[1745590566391,5.59221563,1788.2,1787.8,0.8029]
[1745590566392,5.59340265,1787.9,1787.7,6.779]
[1745590566597,5.59346683,1787.8,1787.7,6.779]
[1745590567027,5.59440559,1787.5,1787.4,16.786]
[1745590567232,5.59503161,1787.3,1787.2,6.779]
[1745590567428,5.59383375,1787.7,1787.2,6.779]
[1745590567744,5.59488615,1787.4,1787.2,6.779]
[1745590567894,5.59413967,1787.6,1787.2,6.779]
[1745590568099,5.5949563,1787.4,1787.2,6.779]
[1745590568458,5.59440559,1787.5,1787.2,6.779]
[1745590568748,5.59383706,1787.7,1787.2,7.4569]
[1745590568894,6.38227293,1788.0,1787.2,7.4569]
[1745590568895,5.5945665,1787.5,1787.2,6.779]
[1745590569414,5.59409263,1787.6,1787.2,6.779]
[1745590569615,5.59503161,1787.3,1787.2,6.779]
[1745590571034,5.59659438,1786.9,1786.8,6.779]
[1745590571353,5.59722377,1786.6,1786.5,6.779]
[1745590571536,5.59695528,1786.7,1786.5,6.779]
[1745590571537,5.59711392,1786.7,1786.5,6.779]
[1745590571736,5.59695476,1786.7,1786.5,6.779]
[1745590571965,5.59722377,1786.6,1786.5,6.779]
[1745590572479,5.5959709,1787.0,1786.5,6.779]
[1745590572632,5.59722377,1786.6,1786.5,6.779]
[1745590572832,5.59660297,1786.8,1786.5,6.779]
[1745590573132,5.59675574,1786.8,1786.5,6.779]
[1745590573323,5.59694171,1786.7,1786.5,6.779]
[1745590573518,3.8206,1787.3,1786.5,6.779]
[1745590573718,5.59692826,1786.7,1786.5,6.779]
[1745590574059,5.59722377,1786.6,1786.5,6.779]
[1745590576072,5.5970697,1786.7,1786.5,6.779]
[1745590576379,5.59629239,1786.9,1786.5,6.779]
[1745590576537,5.59629239,1786.9,1786.5,7.4569]
[1745590576742,0.825,1787.1,1786.5,6.779]
[1745590577075,5.59466406,1787.5,1786.8,5.59648161]
[1745590577222,5.59466406,1787.5,1786.3,5.59800365]
[1745590577223,0.2,1785.4,1783.1,14.64929205]
[1745590577427,0.55,1784.3,1783.1,14.64929205]
[1745590577623,0.75,1784.4,1783.1,14.64929205]
[1745590577828,0.2,1785.1,1783.9,0.7653]
[1745590578024,0.2,1785.1,1784.1,0.7653]
[1745590578261,0.2,1785.1,1784.1,6.09846599]
[1745590578565,0.9845,1785.9,1784.7,6.09846599]
[1745590578767,0.2,1786.0,1785.0,6.09846599]
[1745590578931,0.2,1786.2,1785.3,6.09846599]
[1745590579132,0.2,1785.9,1785.4,7.541]
[1745590579368,0.2,1785.9,1785.5,24.33]
[1745590579533,0.2,1786.0,1785.5,24.33]
[1745590579726,0.8755,1786.5,1785.5,24.33]
[1745590579727,0.05,1785.9,1785.5,24.33]
[1745590579957,0.05,1785.9,1785.5,16.789]
[1745590580172,0.25,1785.9,1785.2,0.7653]
[1745590580473,5.59913009,1786.0,1785.2,0.7653]
[1745590580474,0.7658,1786.0,1785.3,24.335]
[1745590580628,6.36502128,1786.0,1785.3,24.335]
[1745590580833,5.59890067,1786.1,1785.3,24.335]
[1745590581058,5.59941766,1785.9,1785.3,24.335]
[1745590581390,5.59993858,1785.8,1785.2,0.7653]
[1745590581594,5.59993858,1785.8,1785.4,16.792]
[1745590581811,5.59993858,1785.8,1785.5,7.543]
[1745590582018,3.0,1786.4,1785.5,7.543]
[1745590582019,5.59577239,1787.1,1785.5,7.543]
[1745590582201,0.7548,1786.7,1785.6,6.85276599]
[1745590582495,5.59817469,1786.3,1785.7,0.7908]
[1745590582662,5.59789931,1786.4,1785.8,7.544]
[1745590582857,5.59789931,1786.4,1785.7,3.7908]
[1745590583099,0.7548,1786.7,1785.8,7.544]
[1745590583269,5.59782805,1786.5,1785.9,0.7544]
[1745590583595,5.59765701,1786.5,1785.7,3.7908]
[1745590583811,5.59733904,1786.6,1785.8,7.544]
[1745590584094,0.05,1786.9,1785.9,9.09846599]
[1745590584270,5.59693411,1786.7,1785.9,9.09846599]
[1745590584477,5.59673466,1786.8,1786.0,7.544]
[1745590584666,5.598125,1786.4,1786.1,7.544]
[1745590584865,0.05,1786.9,1785.7,0.7908]
[1745590584866,5.59896534,1786.1,1785.7,0.7908]
[1745590585064,0.8127,1786.3,1785.8,24.338]
[1745590585291,0.55,1786.0,1785.4,16.793]
[1745590585599,5.60067208,1785.5,1785.4,16.793]
[1745590585806,5.60067208,1785.5,1785.4,24.336]
[1745590586007,5.60067208,1785.5,1785.4,16.793]
[1745590586207,5.60067208,1785.5,1785.4,24.336]
[1745590587306,5.60230323,1785.0,1784.7,0.7603]
[1745590587508,5.60189766,1785.2,1784.8,24.336]
[1745590587713,5.60224089,1785.0,1784.9,16.793]
[1745590588009,5.60224089,1785.0,1784.9,24.336]
[1745590588209,5.60274903,1784.9,1784.7,0.7603]
[1745590588408,5.60255476,1784.9,1784.8,16.793]
[1745590588609,5.60239976,1785.0,1784.3,0.8317]
[1745590588912,5.6038122,1784.5,1784.4,24.342]
[1745590589107,5.6038122,1784.5,1784.4,16.797]
[1745590589311,5.60255476,1784.9,1784.3,0.8317]
[1745590589488,6.39259976,1785.0,1784.4,24.342]
[1745590589674,5.60381059,1784.5,1784.4,16.797]
[1745590589875,5.60475283,1784.2,1784.1,0.05]
[1745590590173,5.60473038,1784.3,1784.1,16.847]
[1745590590373,5.60475283,1784.2,1784.1,0.05]
[1745590590611,5.60426242,1784.4,1784.1,24.392]
[1745590590911,5.60433044,1784.4,1784.1,24.392]
[1745590591116,5.60428895,1784.4,1784.1,26.91437]
[1745590591270,0.7875,1785.4,1784.4,3.0]
[1745590591471,5.60186141,1785.2,1784.5,0.7571]
[1745590591676,5.60039538,1785.6,1784.6,6.09846599]
[1745590591911,5.60109227,1785.4,1784.7,8.1568466]
[1745590592114,5.60035842,1785.6,1784.5,0.7571]
[1745590592281,5.6015067,1785.3,1784.6,7.547]
[1745590592608,5.601942,1785.1,1784.7,3.0]
[1745590592810,5.6017798,1785.2,1784.6,13.64546599]
[1745590592970,6.35508787,1785.7,1784.7,1.3645466]
[1745590593173,6.41799394,1786.1,1785.0,3.0]
[1745590593413,5.60006766,1785.7,1785.1,16.801]
[1745590593623,14.9358732,1785.7,1785.2,7.547]
[1745590593822,3.73547104,1785.7,1785.3,7.547]
[1745590594010,5.60055204,1785.6,1785.3,7.547]
[1745590594322,5.60055204,1785.6,1785.2,2.4348]
[1745590594530,3.73547104,1785.7,1785.4,7.547]
[1745590594728,3.73547104,1785.7,1785.5,0.7933]
[1745590595135,3.73547104,1785.7,1785.5,19.40634397]
[1745590595430,3.44363736,1785.7,1785.6,8.60035842]
[1745590595631,3.01318269,1785.7,1785.6,14.68035842]
[1745590596138,5.59861384,1786.2,1785.6,6.08]
[1745590596429,5.59722377,1786.6,1785.7,7.547]
[1745590596633,5.59901524,1786.1,1785.8,7.547]
[1745590596798,5.59787623,1786.4,1785.5,0.7933]
[1745590597001,5.5992656,1786.0,1785.6,7.547]
[1745590597221,5.59845552,1786.3,1785.6,13.98119396]
[1745590597422,11.19736887,1786.2,1785.6,8.38103]
[1745590597754,5.598624,1786.2,1785.6,8.38103]
[1745590597928,5.5990175,1786.1,1785.6,8.38103]
[1745590598132,0.8292,1786.9,1785.7,9.09846599]
[1745590598306,5.59859862,1786.2,1785.8,7.546]
[1745590598848,5.59722377,1786.6,1785.7,2.91597358]
[1745590599068,5.59755041,1786.5,1785.8,7.546]
[1745590599205,5.59929638,1786.0,1785.8,7.546]
[1745590599413,5.59755041,1786.5,1785.5,0.7933]
[1745590599613,5.60022078,1785.7,1785.6,7.546]
[1745590599818,0.7921,1786.3,1785.6,7.546]
[1745590600153,6.51855469,1786.4,1785.8,5.59971701]
[1745590600154,0.00269601,1786.2,1785.8,5.59971701]
[1745590600350,0.00269601,1786.2,1785.9,7.546]
[1745590600849,0.00269601,1786.2,1786.0,7.546]
[1745590602352,0.00269601,1786.2,1785.8,0.7615]
[1745590602556,0.00269601,1786.2,1786.1,7.546]
[1745590602557,5.60129235,1786.2,1786.1,7.546]
[1745590602849,5.60131653,1786.2,1786.1,7.546]
[1745590603054,5.59910414,1786.0,1785.9,16.8]
[1745590603421,5.59910414,1786.0,1785.9,24.345]
[1745590603615,5.59979624,1785.8,1785.6,16.798]
[1745590603947,5.59979624,1785.8,1785.7,7.545]
[1745590604153,5.6000448,1785.7,1784.8,11.70118046]
[1745590604315,0.00269601,1785.7,1785.0,24.343]
[1745590604513,0.00269601,1785.7,1785.1,5.60170993]
[1745590604735,0.00269601,1785.7,1785.4,0.7934]
[1745590605523,5.60109494,1785.4,1785.0,17.5698]
[1745590605762,5.60035842,1785.6,1785.1,7.545]
[1745590605916,5.60084833,1785.5,1785.1,7.545]
[1745590606117,5.6005156,1785.6,1785.1,7.545]
[1745590606312,5.60119532,1785.4,1785.1,7.545]
[1745590606723,5.60291408,1785.7,1785.1,10.05648]
[1745590606962,0.00269601,1785.7,1785.1,10.05648]
[1745590607118,5.60092507,1785.5,1785.1,7.745]
[1745590607318,5.60102493,1785.4,1785.1,7.745]
[1745590608254,5.60120061,1785.4,1785.1,7.745]
[1745590608759,5.60158747,1785.3,1785.1,7.745]
[1745590608951,5.60158827,1785.3,1785.1,7.745]
[1745590609271,5.60161326,1785.2,1785.1,0.2]
[1745590609469,5.60161326,1785.2,1785.1,7.54]
[1745590609960,6.1215311,1785.2,1785.1,7.54]
[1745590610460,0.51991784,1785.2,1785.1,7.541]
[1745590611118,5.60098577,1785.4,1785.1,7.541]
[1745590611321,5.60115423,1785.4,1785.1,7.541]
[1745590611555,11.72163136,1785.5,1785.1,7.541]
[1745590611868,5.60112386,1785.4,1785.1,7.541]
[1745590612175,11.2016747,1785.5,1785.1,7.541]
[1745590612402,5.60100974,1785.4,1785.1,7.541]
[1745590613566,5.60161326,1785.2,1785.1,0.2]
[1745590613771,5.60161326,1785.2,1785.1,7.541]
[1745590614656,5.60108148,1785.4,1785.1,7.541]
[1745590614857,5.60088286,1785.5,1785.1,7.541]
[1745590615403,6.40355844,1785.8,1785.1,9.9749]
[1745590615404,5.60047644,1785.6,1785.1,9.9749]
[1745590615574,5.60051083,1785.6,1785.1,9.9749]
[1745590615771,5.60048633,1785.6,1785.2,0.7645]
[1745590615970,5.6000448,1785.7,1785.2,0.7645]
[1745590616286,5.60049571,1785.6,1785.3,7.342]
[1745590616483,0.8038,1785.8,1785.3,7.342]
[1745590616484,6.40368067,1785.8,1785.3,8.15265]
[1745590616673,5.59952365,1785.9,1785.3,8.15265]
[1745590616853,5.59824209,1786.3,1785.3,8.15265]
[1745590617060,5.59769134,1786.5,1785.8,5.59958095]
[1745590617261,5.59706553,1786.7,1786.0,5.59906561]
[1745590617499,11.1942471,1786.7,1786.2,0.7723]
[1745590617699,0.05,1786.9,1786.2,6.37051947]
[1745590617700,5.64640524,1786.9,1786.2,6.37051947]
[1745590617904,5.6463059,1786.9,1786.2,6.37051947]
[1745590618105,5.59664238,1786.8,1786.2,0.7723]
[1745590618396,0.05,1786.9,1786.2,0.7723]
[1745590618598,0.05,1786.9,1786.3,5.59814581]
[1745590618761,5.59667469,1786.8,1786.4,7.90081458]
[1745590618962,5.64644323,1786.9,1786.4,7.341]
[1745590619163,5.64649103,1786.9,1786.4,7.341]
[1745590619487,5.59670497,1786.8,1786.4,7.341]
[1745590619795,0.05,1786.9,1786.4,7.341]
[1745590619981,5.64639499,1786.9,1786.4,7.341]
[1745590620182,0.05,1786.9,1786.4,7.341]
[1745590620388,0.05,1786.9,1786.4,8.0751]
[1745590621303,0.05,1786.9,1786.8,8.59659726]
[1745590621470,5.64340306,1787.9,1787.2,0.7889]
[1745590621672,0.05,1787.9,1787.3,7.339]
[1745590622000,5.59469637,1787.5,1787.2,0.7889]
[1745590622171,5.64319633,1787.9,1787.2,0.7889]
[1745590622377,5.59487283,1787.4,1787.3,7.339]
[1745590622886,5.59409523,1787.6,1786.9,0.8242]
[1745590623200,3.05,1787.9,1787.0,16.797]
[1745590623359,5.5950209,1787.4,1787.0,24.136]
[1745590623574,5.59556228,1787.2,1787.0,24.136]
[1745590624072,5.59565776,1787.1,1787.0,16.797]
[1745590624277,5.59565776,1787.1,1787.0,24.136]
[1745590624602,5.59511355,1787.3,1786.5,0.7745]
[1745590624786,5.59658988,1786.9,1786.6,7.338]
[1745590624974,5.59572591,1787.1,1786.7,7.098]
[1745590625175,5.59551562,1787.2,1786.7,7.8078]
[1745590625487,5.59512925,1787.3,1786.7,7.8078]
[1745590626219,5.5954503,1787.2,1786.7,7.8078]
[1745590626413,5.59534467,1787.2,1786.8,7.098]
[1745590626600,5.59655614,1786.9,1786.8,7.098]
[1745590626782,5.59628406,1786.9,1786.8,7.098]
[1745590626981,5.59663698,1786.8,1786.5,16.793]
[1745590627178,5.59628406,1786.9,1786.2,0.7762]
[1745590627179,5.59722377,1786.6,1786.2,0.7762]
[1745590627385,5.59785042,1786.4,1786.3,7.098]
[1745590627799,5.59879066,1786.1,1786.0,0.7762]
[1745590627978,5.59879066,1786.1,1786.0,7.098]
[1745590628182,0.8193,1786.5,1785.5,0.8034]
[1745590628414,5.59785368,1786.4,1785.6,7.098]
[1745590628712,5.59922371,1786.0,1785.6,7.098]
[1745590628888,6.14879066,1786.1,1785.7,7.098]
[1745590629093,5.59960146,1785.9,1785.8,7.098]
[1745590629728,5.59922453,1786.0,1785.8,7.098]
[1745590629931,5.5981638,1786.3,1785.8,7.098]
[1745590630221,5.59941766,1785.9,1785.8,7.098]
[1745590630583,5.59879855,1786.1,1785.5,16.792]
[1745590630789,11.20002096,1785.8,1785.6,7.099]
[1745590630986,5.5996234,1785.9,1785.6,7.099]
[1745590631233,5.6000448,1785.7,1785.6,7.099]
[1745590631739,5.5996024,1785.9,1785.6,7.099]
[1745590632074,5.6000448,1785.7,1785.6,7.099]
[1745590633272,5.6000448,1785.7,1785.5,16.792]
[1745590633273,5.6012995,1785.3,1785.2,0.7924]
[1745590633476,5.6012995,1785.3,1785.2,7.099]
[1745590633773,5.6012995,1785.3,1785.1,17.047]
[1745590633970,5.60161326,1785.2,1785.1,17.047]
[1745590634131,6.40017974,1785.9,1785.1,24.146]
[1745590634132,6.14973121,1785.8,1785.1,24.146]
[1745590634331,5.60161326,1785.2,1785.1,17.047]
[1745590634534,5.60161326,1785.2,1785.1,24.146]
[1745590634744,5.60136537,1785.3,1785.1,24.146]
[1745590634963,5.60161326,1785.2,1785.1,24.146]
[1745590635790,5.60161326,1785.2,1785.1,17.047]
[1745590635999,5.60134371,1785.3,1785.1,24.146]
[1745590636154,5.60161326,1785.2,1785.1,24.146]
[1745590636591,5.60123633,1785.4,1785.1,24.146]
[1745590636965,5.60054976,1785.6,1785.1,24.146]
[1745590637167,5.60023875,1785.7,1785.1,24.146]
[1745590637465,5.59879066,1786.1,1785.2,0.8028]
[1745590637694,5.60112488,1785.4,1785.2,0.8028]
[1745590637989,5.6012995,1785.3,1785.1,17.047]
[1745590638187,5.60161326,1785.2,1785.1,0.25]
[1745590638394,5.60161326,1785.2,1785.1,7.35]
[1745590641112,5.60161326,1785.2,1785.1,0.25]
[1745590641268,5.60372894,1784.6,1784.3,0.7965]
[1745590641457,5.60372894,1784.6,1784.5,7.101]
[1745590642082,3.8332,1785.2,1784.5,7.101]
[1745590642259,5.60349658,1784.6,1784.5,7.101]
[1745590642997,5.60319095,1784.7,1784.5,7.101]
[1745590643154,5.60349658,1784.6,1784.5,7.101]
[1745590643358,5.60319095,1784.7,1784.1,16.851]
[1745590643359,5.60475283,1784.2,1784.1,16.851]
[1745590643714,5.6045308,1784.3,1784.1,23.954]
[1745590644010,11.20923416,1784.3,1784.1,23.954]
[1745590644189,8.6025824,1784.9,1784.1,16.851]
[1745590644389,3.7671,1785.0,1784.2,7.103]
[1745590644718,6.3694513,1785.0,1784.2,12.70755945]
[1745590644921,6.36954214,1785.0,1784.3,7.103]
[1745590645071,6.0,1785.8,1784.8,5.60283399]
[1745590645268,5.60144758,1785.3,1784.9,7.103]
[1745590645578,0.7617,1785.7,1784.9,7.103]
[1745590645889,5.59988507,1785.8,1785.1,5.60190219]
[1745590646090,4.85611236,1786.2,1785.2,5.60155536]
[1745590646424,4.85611236,1786.2,1785.7,6.09846599]
[1745590646719,4.85611236,1786.2,1785.8,7.8674]
[1745590646870,4.85611236,1786.2,1785.9,22.40636899]
[1745590647067,4.85611236,1786.2,1785.9,16.807]
[1745590647376,4.85611236,1786.2,1786.1,5.59879066]
[1745590647571,4.85611236,1786.2,1786.1,8.10981324]
[1745590648070,5.64642673,1786.9,1786.2,5.59845543]
[1745590648298,0.05,1786.9,1786.3,12.46414375]
[1745590648516,0.05,1786.9,1786.4,3.7814]
[1745590648697,0.05,1786.9,1786.5,5.59739485]
[1745590649015,5.64641996,1786.9,1786.4,0.7814]
[1745590649180,0.05,1786.9,1786.6,6.864]
[1745590649507,0.05,1786.9,1786.7,0.8066]
[1745590649711,0.05,1786.9,1786.8,16.802]
[1745590651194,5.64628406,1786.9,1786.8,23.665]
[1745590651392,0.05,1786.9,1786.8,23.665]
[1745590652191,5.64628406,1786.9,1786.8,23.665]
[1745590652827,5.64628406,1786.9,1786.8,16.802]
[1745590653304,5.59659726,1786.8,1786.7,6.863]
[1745590653916,5.59847721,1786.2,1786.1,16.798]